Cogmind - Beta 13 @@@ ROGUE MODE // 2024.03.31 @ 23:09:20 Player: DeNiCoN Result: Destroyed by D-53 Grenadier with Mini Grenade Launcher Performance ------------- Evolutions (1) 500 Regions Visited (3) 600 Robots Destroyed (21) 105 Value Destroyed (712) 712 Prototype IDs (2) 40 Alien Tech Used (0) 0 Bonus (0) 0 TOTAL SCORE: 1957 Bonus ------- None Cogmind --------- Core Integrity 0/400 Matter 285/300 Energy 267/280 System Corruption 0% Temperature Hot (216) Movement Core (350) Ox6 Location -9/Mines Parts ------- > --- POWER (1) -------- Cooled Ion Engine > --- PROPULSION (4) --- (None) > --- UTILITY (2) ------ Small Storage Unit > --- WEAPON (2) ------- Beam Rifle Improved Medium Laser > --- INVENTORY (8) ---- Ion Engine Light Ion Engine Improved Heat Sink Disposable Heat Sink EM Shotgun Spread Laser Peak State ------------ > --- POWER ------------ Cooled Ion Engine > --- PROPULSION ------- Aluminum Leg Aluminum Leg Aluminum Leg Aluminum Leg > --- UTILITY ---------- Small Storage Unit Sensor Array > --- WEAPON ----------- Improved Medium Laser Improved Medium Laser > --- INVENTORY -------- Ion Engine Light Ion Engine Aluminum Leg Improved Heat Sink Disposable Heat Sink EM Shotgun Beam Rifle Spread Laser [Rating: 16] Favorites ----------- Power Ion Engine Engine Ion Engine Power Core Light Nuclear Core Propulsion Aluminum Leg Leg Aluminum Leg Utility Small Storage Unit Device Sensor Array Storage Small Storage Unit Weapon Assault Rifle Energy Gun Particle Gun Ballistic Gun Assault Rifle Build | -11 -10 -9 -9 ------- Run | Yrd Mat Mat Min Slots Evolved 2 | . . 2 . Power . | . . . . Propulsion 2 | . . 2 . Utility . | . . . . Weapon . | . . . . Parts Attached 25 | 6 2 15 2 Power 4 | 1 1 2 . Engine 3 | 1 . 2 . Core 1 | . 1 . . Reactor . | . . . . Propulsion 10 | 2 1 6 1 Treads . | . . . . Leg 10 | 2 1 6 1 Wheel . | . . . . Hover . | . . . . Flight . | . . . . Utility 2 | 1 . 1 . Device 1 | . . 1 . Storage 1 | 1 . . . Processor . | . . . . Hackware . | . . . . Protection . | . . . . Artifact . | . . . . Weapon 9 | 2 . 6 1 Energy Gun 5 | . . 4 1 Energy Cannon . | . . . . Ballistic Gun 4 | 2 . 2 . Ballistic Cannon . | . . . . Launcher . | . . . . Special Weapon . | . . . . Impact Weapon . | . . . . Slashing Weapon . | . . . . Piercing Weapon . | . . . . Special Melee Weapon . | . . . . Unidentified Prototypes 2 | . . 2 . Parts Lost 16 | . 1 8 7 Power 2 | . . 2 . Propulsion 9 | . 1 3 5 Utility 1 | . . . 1 Weapon 4 | . . 3 1 Highest Loss Streak 7 | . 1 6 7 To Critical Strikes . | . . . . Average Slot Usage (%) 92 | . 82 98 79 Engine 6 | . 4 6 11 Core 5 | . 9 3 . Leg 37 | . 25 44 30 Device 7 | . . 10 4 Storage 11 | . 14 11 11 Energy Gun 9 | . . 12 22 Ballistic Gun 14 | . 28 8 . Naked Turns . | . . . . Heaviest Build 20 | 13 13 20 20 Greatest Support 40 | 20 20 40 40 Greatest Overweight (x) 1 | . 1 . . Average Overweight (x) . | . . . . Largest Inventory Capacity 8 | 8 8 8 8 Average Capacity 7 | 7 8 8 8 Most Carried 8 | 4 7 8 8 Average Carried 6 | 1 5 6 7 Final Capacity 8 | 8 8 8 8 Final Carried 8 | 1 7 8 6 Class Distribution -------------------- 63% | Scavenger-Mutant 36% | Mutant Dominant Class ---------------- Mutant | -10/Materials Scavenger-Mutant | -9/Materials Mutant | -9/Mines Resources | -11 -10 -9 -9 ----------- Run | Yrd Mat Mat Min Matter Collected 622 | 199 83 340 . Remotely . | . . . . Salvage Created 846 | . 246 540 60 Parts 49 | . 18 29 2 Haulers Intercepted 1 | . . 1 . Recyclers Shooed 1 | . 1 . . Parts Field Recycled . | . . . . Retrieved Matter . | . . . . Parts Self-Destructed . | . . . . Prevented . | . . . . Kills | -11 -10 -9 -9 ------- Run | Yrd Mat Mat Min Combat Hostiles Destroyed 19 | . 7 11 1 Guns 18 | . 7 11 . Classes Destroyed 6 | . 3 2 1 Hauler 1 | . . 1 . Watcher 1 | . 1 . . Swarmer 3 | . 3 . . Grunt 12 | . 4 8 . Brawler 1 | . . . 1 Sentry 3 | . . 3 . Best Kill Streak 4 | . 4 3 1 Combat Bots Only 4 | . 4 3 1 Max Kills in Single Turn 2 | . 2 1 1 Gunslinging 1 | . 1 . . Exploded . | . . . . Melee . | . . . . Uniques/NPCs Destroyed . | . . . . Combat | -11 -10 -9 -9 -------- Run | Yrd Mat Mat Min Hostile Shots Fired 220 | . 69 97 54 Missed 70 | . 24 33 13 Damage Taken 2196 | . 470 867 859 Core 571 | . 120 147 304 Absorbed by Shields . | . . . . Core Remaining (%) 76 | 100 52 . . Volleys Fired 82 | . 29 42 11 Largest 2 | . 2 2 2 Hottest 121 | . 40 121 112 Shots Fired 163 | . 58 83 22 Gun 163 | . 58 83 22 Cannon . | . . . . Launcher . | . . . . Special . | . . . . Kinetic 116 | . 58 58 . Thermal 47 | . . 25 22 Explosive . | . . . . Electromagnetic . | . . . . Robot Hit Streak 12 | . 5 12 2 Robot Miss Streak 5 | . 3 3 5 Penetration Max . | . . . . Secondary Targets 4 | . 2 2 . Max Gunslinging Chain 1 | . 1 1 . Shots Hit Robots 102 | . 34 62 6 Core Hits 43 | . 17 25 1 Critical Kills . | . . . . Critical Parts Destroyed 1 | . . 1 . Critical Strikes 4 | . . 1 3 Burn 3 | . . . 3 Destroy 1 | . . 1 . Melee Attacks . | . . . . Impact . | . . . . Slashing . | . . . . Piercing . | . . . . Sneak Attacks . | . . . . Combat Hostiles . | . . . . Follow-up Attacks . | . . . . Damage Inflicted 1380 | . 388 843 149 Guns 1379 | . 388 842 149 Cannons . | . . . . Explosions . | . . . . Melee . | . . . . Ramming 1 | . . 1 . Kinetic 957 | . 388 569 . Thermal 422 | . . 273 149 Explosive . | . . . . Electromagnetic . | . . . . Impact . | . . . . Slashing . | . . . . Piercing . | . . . . Highest Corruption . | . . . . Average Corruption . | . . . . Corruption Purged . | . . . . Corruption Blocked . | . . . . Overload Shots . | . . . . Overflow Damage . | . . . . Projectiles . | . . . . Explosions . | . . . . Melee . | . . . . Knockbacks . | . . . . Impact . | . . . . Kinetic . | . . . . Secondary . | . . . . Self-Inflicted Damage . | . . . . Shots . | . . . . Rammed . | . . . . Targets Rammed 1 | . . 1 . Kicked 1 | . . 1 . Crushed . | . . . . Highest Temperature 332 | . 33 332 332 Average Temperature 97 | . 7 101 191 Received Heat Transfer 801 | . 177 462 162 Siege Activations . | . . . . Robots Corrupted . | . . . . Combat Hostiles . | . . . . Parts Fried . | . . . . Impact Corruptions . | . . . . Robots Melted 1 | . . . 1 Combat Hostiles 1 | . . . 1 Parts Melted 2 | . . 1 1 Heat Transferred 1221 | . . 666 555 Parts Sabotaged . | . . . . Parts Stolen . | . . . . Parts Stripped . | . . . . Power Chain Reactions . | . . . . Alert | -11 -10 -9 -9 ------- Run | Yrd Mat Mat Min Peak Influence 275 | . 196 275 92 Initial 82 | . . 82 47 Average 134 | . 116 161 58 Maximum Alert Level 1 | . . 1 . Low Security (%) 77 | 100 100 63 100 Level 1 22 | . . 36 . Level 2 . | . . . . Level 3 . | . . . . Level 4 . | . . . . Level 5 . | . . . . High Security . | . . . . Max Security . | . . . . Squads Dispatched . | . . . . Investigation . | . . . . Extermination . | . . . . Reinforcement . | . . . . Assault . | . . . . Garrison . | . . . . Intercept . | . . . . Searches Triggered . | . . . . Construction Impeded . | . . . . Haulers Reinforced . | . . . . Active Scanning Responses . | . . . . Cargo Convoy Interrupts . | . . . . Stealth | -11 -10 -9 -9 --------- Run | Yrd Mat Mat Min Distress Signals . | . . . . Communications Jammed . | . . . . Distress Signals . | . . . . Times Spotted 24 | . 8 11 5 Peak Tracking Total 5 | . 4 4 5 Tactical Retreats 1 | . . 1 . Traps | -11 -10 -9 -9 ------- Run | Yrd Mat Mat Min Traps Triggered . | . . . . Indirectly . | . . . . Trap Hack Attempts . | . . . . Triggered . | . . . . Disarmed . | . . . . Reprogrammed . | . . . . Reused . | . . . . Traps Extracted . | . . . . Installed . | . . . . Triggered . | . . . . Machines | -11 -10 -9 -9 ---------- Run | Yrd Mat Mat Min Machines Disabled 2 | . 1 . 1 Max in Single Turn 1 | . 1 . 1 Machines Repaired . | . . . . Machines Dismantled . | . . . . Machines Sabotaged . | . . . . Overloaded Fab Kills . | . . . . Hacking | -11 -10 -9 -9 --------- Run | Yrd Mat Mat Min Machines Accessed 7 | . 4 3 . Terminals 5 | . 3 2 . Fabricators . | . . . . Repair Stations . | . . . . Recycling Units 2 | . 1 1 . Scanalyzers . | . . . . Garrison Access . | . . . . Total Hacks 20 | . 13 7 . Successful 11 | . 8 3 . Failed 6 | . 4 2 . Catastrophic 2 | . 1 1 . Database Lockouts 3 | . 1 2 . Manual 3 | . 2 1 . Terminals 17 | . 11 6 . Fabricators . | . . . . Repair Stations . | . . . . Recycling Units 3 | . 2 1 . Scanalyzers . | . . . . Garrison Access . | . . . . Terminal Hacks 8 | . 6 2 . Record 8 | . 6 2 . Fabricator Hacks . | . . . . Repair Station Hacks . | . . . . Recycling Unit Hacks 3 | . 2 1 . Process 1 | . 1 . . Report Inventory 2 | . 1 1 . Scanalyzer . | . . . . Garrison Access Hacks . | . . . . Unauthorized Hacks . | . . . . Terminals . | . . . . Fabricators . | . . . . Repair Stations . | . . . . Recycling Units . | . . . . Scanalyzers . | . . . . Garrison Access . | . . . . Data Cores Recovered . | . . . . Used . | . . . . Hacking Detections 6 | . 3 3 . Full Trace Events . | . . . . Feedback Events . | . . . . Feedback Blocked . | . . . . Robot Schematics Acquired . | . . . . Robots Built . | . . . . Authchips . | . . . . Time . | . . . . Total Robot Build Rating . | . . . . Part Schematics Acquired . | . . . . Parts Built . | . . . . Authchips . | . . . . Time . | . . . . Total Part Build Rating . | . . . . Parts Repaired . | . . . . Time . | . . . . Parts Recycled . | . . . . Recycled Matter 107 | . 107 . . Retrieved Matter . | . . . . Retrieved Components . | . . . . Parts Scanalyzed . | . . . . Part Schematics Acquired . | . . . . Parts Damaged . | . . . . Bothacking | -11 -10 -9 -9 ------------ Run | Yrd Mat Mat Min Used RIF Installer . | . . . . Robots Hacked . | . . . . Non-combat . | . . . . Combat . | . . . . Robot Hacks Applied . | . . . . Relay Couplers Released . | . . . . Fabnet Peak Effective % . | . . . . Robots Rewired . | . . . . Allies Hacked . | . . . . Hacks Repelled . | . . . . Allies | -11 -10 -9 -9 -------- Run | Yrd Mat Mat Min Total Allies . | . . . . Largest Group . | . . . . Highest-Rated Group . | . . . . Highest-Rated Ally . | . . . . Total Orders . | . . . . Ally Attacks . | . . . . Total Damage . | . . . . Kills . | . . . . Allies Corrupted . | . . . . Allies Melted . | . . . . Intel | -11 -10 -9 -9 ------- Run | Yrd Mat Mat Min Robot Analysis Total . | . . . . Derelict Logs Recovered . | . . . . Drone Launches . | . . . . Drone Recoveries . | . . . . Exploration | -11 -10 -9 -9 ------------- Run | Yrd Mat Mat Min Turns Passed 1029 | 51 314 619 45 Spaces Moved 606 | 41 176 379 10 Core 15 | 15 . . . Treads . | . . . . Legs 591 | 26 176 379 10 Wheels . | . . . . Hover . | . . . . Flight . | . . . . Fastest Speed 50 | 50 120 120 120 Average Speed 120 | 94 127 120 120 Slowest Speed 190 | 120 190 120 120 Overloaded Moves . | . . . . Propulsion Burnouts . | . . . . Robots Hopped . | . . . . Cave-ins Triggered . | . . . . Exploration Rate (%) 20 | 4 44 25 10 Regions Visited 3 Branch Regions 1 Pre-discovered Areas . | . . . . Known Exits Taken . | . . . . Unknown Exits Taken 3 | 1 1 1 . Scrap Searched . | . . . . Spaces Dug . | . . . . Terrain Destroyed . | . . . . Melee . | . . . . Projectile . | . . . . AOE . | . . . . Terrain Rammed . | . . . . Walls Destroyed . | . . . . Machines Disabled . | . . . . Actions | -11 -10 -9 -9 --------- Run | Yrd Mat Mat Min Total 751 | 53 213 462 23 Wait 11 | . . 11 . Move 603 | 40 175 378 10 Hop . | . . . . Pick Up 26 | 7 7 12 . Fast Attach 2 | . . 2 . Attach 19 | 6 1 10 2 Detach . | . . . . Swap 4 | . 1 3 . Drop 3 | . . 3 . Fire 82 | . 29 42 11 Melee . | . . . . Ram . | . . . . Kick 1 | . . 1 . Crush . | . . . . Escape Stasis . | . . . . Rewire . | . . . . Trap . | . . . . Miscellaneous . | . . . . Route ------- -11/Scrapyard -10/Materials -9/Materials -9/Mines History --------- Turn | Location | Event 9 | -11/Scrapyard | Discovered new exit (range 16) 52 | -11/Scrapyard | Entered Materials 180 | -10/Materials | Central database locked down 301 | -10/Materials | Build established: Mutant 349 | -10/Materials | Discovered new exit (range 15) 366 | -10/Materials | Entered another Materials area 366 | -9/Materials | Evolved 2 slots: Propulsion x2 416 | -9/Materials | Central database locked down 416 | -9/Materials | Central database locked down 634 | -9/Materials | Lost 6 parts (1p3n2w) 651 | -9/Materials | Build established: Scavenger-Mutant 967 | -9/Materials | Discovered new exit (range 15) 985 | -9/Materials | Entered Mines 986 | -9/Mines | Assembled infested the area 1009 | -9/Mines | Core integrity fell below 50% 1021 | -9/Mines | Met 8R-AWN 1028 | -9/Mines | Core integrity fell below 20% 1030 | -9/Mines | Destroyed by D-53 Grenadier with Mini Grenade Launcher Last Messages --------------- Aluminum Leg destroyed. HV Slug penetrates as-37517. as-37517 suffers critical hit (Destroy). Imp. Medium Laser destroyed. Aluminum Leg destroyed. U-05 Engineer lays Concrete. HV Slug penetrates as-26652. HV Slug penetrates Wall. HV Slug penetrates as-26652. as-26652 suffers critical hit (Destroy). as-26652 destroyed. HV Slug penetrates Wall. The unstable cave ceiling collapses. U-05 Engineer lays Concrete. Aluminum Leg destroyed. The unstable cave ceiling collapses. HV Slug penetrates as-42342. as-42342 suffers critical hit (Destroy). as-42342 destroyed. U-05 Engineer lays Concrete. Map ----- +----------------------------------------------------+ | ?????????????????????????????????????????????? | | ??????????????????? ?????????????????????????? | | ???????????????????"?????????????????????????? | | ???????????????????%?????????????????????????? | | ???????????????????"#????????????????????????? | | ??????????????????? #????????????????????????? | | ???????????????####"##???????????????????????? | | ???????????????# "%" ???????????????????????? | | ??????????????? " ??#????????????????????? | | ???????????????# #????????????????????? | | ???????????????# """ #????????????????????? | | ???????????????# """ #????????????????????? | | ???????????????# """ ###??????????????????? | | ??????????????## u ???????????????????? | | ?????????????## gg " #????????????????????? | | ?????????????# =% #????????????????????? | | ??????????????#T dd #????????????????????? | | ??????????????# #????????????????????? | | ??????? ??????# # ##????????????????????? | | ?????" ### ##????????????????????? | | ????? #???#????????????????? | | ????? ##### ### #????????????????? | | ?????? ???????## $ ?????????????????? | | ?????? %%g% ##### #??????????????????? | | ??????%%%%aaa % #??????????????????? | | ?????? aa a @ #??????????????????? | | ?????? ;#?????????????????? | | ??????# # #;#????????????????? | | ???????##; ??## ##??????????????????? | | ????????### ?????## # ##???????????????????? | | ??????????????????#######????????????????????? | | ?????????????????????????????????????????????? | | ?????????????????????????????????????????????? | | ?????????????????????????????????????????????? | | ?????????????????????????????????????????????? | | ?????????????????????????????????????????????? | | | | | | | | | | | | | | | | | | | | | | | | | | | | | +----------------------------------------------------+ Best States ------------- Heat Dissipation 28 Energy Generation 14 Energy Capacity 280 Matter Stores 300 Matter Capacity 300 Sight Range 16 Robot Scan Range 14 Terrain Scan Density 10 Evasion (%) 55 Item Schematics ----------------- None Robot Schematics ------------------ None Fabricated ------------ Nothing Alien Tech Used ----------------- None Achievements -------------- It's Just You Challenges ------------ None Game ------ Seed AlphaSplicePrototype Manual? 0 Play Time 00:17:59 Cumulative 3.3 hours Start 2024.03.31 @ 22:51:03 End 2024.03.31 @ 23:09:20 Sessions 1 Manual Loads 0 Difficulty Rogue Special Mode None Game No. 5 Rogue 5 Adventurer 0 Explorer 0 Win Type - Total 0 Types 0/0/0/0/0/0/0/0/0 Lore% 6 Gallery% 5 Achievement% 6 Wizard Run 0 Options --------- Layout 1 ASCII 0 Keyboard 0 Movement Mouse Keybinds 0 Fullscreen 1 Font 24/Smallcaps Map View 50x35 Zoom Use 0% Tactical HUD 0 Map Filters NONE Filters NONE Steam 1 RUN: 6722d6a0-fa5e-4a98-8512-d04aefc42a29